[Event "Live Chess"]
[Site "Chess.com"]
[Date "2023.05.20"]
[Round "-"]
[White "LutherSullivan"]
[Black "Olisingapore"]
[Result "1-0"]
[WhiteElo "2051"]
[BlackElo "1846"]
[TimeControl "300"]
[EndTime "15:50:07 PDT"]
[Termination "LutherSullivan won by checkmate"]

1. e4 {[%clk 0:04:58.1]} 1... c5 {[%clk 0:04:59]} 2. Nf3 {[%clk 0:04:56.2]} 2...
d6 {[%clk 0:04:58.3]} 3. c3 {[%clk 0:04:54.1]} 3... Nf6 {[%clk 0:04:57.3]} 4.
Be2 {[%clk 0:04:52.7]} 4... Nc6 {[%clk 0:04:56.1]} 5. d4 {[%clk 0:04:50]} 5...
cxd4 {[%clk 0:04:51.6]} 6. cxd4 {[%clk 0:04:47.9]} 6... Nxe4 {[%clk 0:04:49.2]}
7. d5 {[%clk 0:04:46.6]} 7... Qa5+ {[%clk 0:04:32.3]} 8. Nc3 {[%clk 0:04:23.1]}
8... Nxc3 {[%clk 0:04:18.5]} 9. bxc3 {[%clk 0:04:19.6]} 9... Ne5 {[%clk
0:04:16.9]} 10. Nxe5 {[%clk 0:04:05.2]} 10... dxe5 {[%clk 0:04:14.7]} 11. O-O
{[%clk 0:03:59]} 11... e6 {[%clk 0:04:11.1]} 12. Rb1 {[%clk 0:03:46.5]} 12...
exd5 {[%clk 0:03:52.7]} 13. Bb5+ {[%clk 0:03:42.7]} 13... Bd7 {[%clk 0:03:36.3]}
14. Qxd5 {[%clk 0:03:18.1]} 14... Qc7 {[%clk 0:03:30.7]} 15. Bxd7+ {[%clk
0:02:48.2]} 15... Qxd7 {[%clk 0:03:30.6]} 16. Qxe5+ {[%clk 0:02:47.4]} 16... Be7
{[%clk 0:03:29.1]} 17. Ba3 {[%clk 0:02:26.4]} 17... Kf8 {[%clk 0:03:10]} 18.
Rfd1 {[%clk 0:01:58]} 18... Qe6 {[%clk 0:03:01]} 19. Bxe7+ {[%clk 0:01:51.1]}
19... Qxe7 {[%clk 0:02:58.7]} 20. Qd5 {[%clk 0:01:29.9]} 20... Re8 {[%clk
0:02:46.4]} 21. h3 {[%clk 0:01:25.2]} 21... Qe6 {[%clk 0:02:37.4]} 22. Rxb7
{[%clk 0:01:10.5]} 22... Qxd5 {[%clk 0:02:21.2]} 23. Rxd5 {[%clk 0:01:09.4]}
23... g6 {[%clk 0:02:15]} 24. Rdd7 {[%clk 0:01:06.8]} 24... Kg7 {[%clk
0:02:07.2]} 25. Rxf7+ {[%clk 0:01:05.8]} 25... Kh6 {[%clk 0:02:06.5]} 26. Rxa7
{[%clk 0:01:04.7]} 26... Re2 {[%clk 0:02:02.8]} 27. c4 {[%clk 0:00:57]} 27...
Rc2 {[%clk 0:02:00.2]} 28. Rf4 {[%clk 0:00:54]} 28... g5 {[%clk 0:01:53.6]} 29.
Rf6+ {[%clk 0:00:52.1]} 29... Kh5 {[%clk 0:01:52.8]} 30. g4+ {[%clk 0:00:50.2]}
30... Kh4 {[%clk 0:01:51.3]} 31. Rh6# {[%clk 0:00:49.6]} 1-0

[Event "Live Chess"]
[Site "Chess.com"]
[Date "2023.05.20"]
[Round "-"]
[White "wot-not"]
[Black "Fort9"]
[Result "0-1"]
[WhiteElo "1533"]
[BlackElo "1698"]
[TimeControl "300"]
[EndTime "15:50:41 PDT"]
[Termination "Fort9 won by checkmate"]

1. e4 {[%clk 0:04:56.4]} 1... e5 {[%clk 0:04:59]} 2. f4 {[%clk 0:04:55.5]} 2...
exf4 {[%clk 0:04:57.8]} 3. Nf3 {[%clk 0:04:54.6]} 3... d6 {[%clk 0:04:56.5]} 4.
d4 {[%clk 0:04:53.5]} 4... g5 {[%clk 0:04:54.8]} 5. Bc4 {[%clk 0:04:51.8]} 5...
Be6 {[%clk 0:04:51.5]} 6. Bxe6 {[%clk 0:04:48.8]} 6... fxe6 {[%clk 0:04:51.4]}
7. e5 {[%clk 0:04:45.5]} 7... d5 {[%clk 0:04:50.6]} 8. O-O {[%clk 0:04:44.1]}
8... Nd7 {[%clk 0:04:49.4]} 9. c3 {[%clk 0:04:43.2]} 9... Qe7 {[%clk 0:04:44.5]}
10. b4 {[%clk 0:04:40.1]} 10... O-O-O {[%clk 0:04:37.3]} 11. a4 {[%clk
0:04:39.1]} 11... h5 {[%clk 0:04:34.3]} 12. b5 {[%clk 0:04:19.5]} 12... Bh6
{[%clk 0:04:06]} 13. a5 {[%clk 0:04:14.9]} 13... g4 {[%clk 0:03:53.8]} 14. b6
{[%clk 0:04:07.5]} 14... cxb6 {[%clk 0:03:41.9]} 15. Nh4 {[%clk 0:04:06.5]}
15... Qxh4 {[%clk 0:03:34.5]} 16. axb6 {[%clk 0:04:04.5]} 16... Nxb6 {[%clk
0:03:29.9]} 17. Rxa7 {[%clk 0:04:01.3]} 17... g3 {[%clk 0:02:52.3]} 18. h3
{[%clk 0:03:58.7]} 18... Ne7 {[%clk 0:02:48.4]} 19. Qb3 {[%clk 0:03:56.6]} 19...
Kc7 {[%clk 0:02:31.6]} 20. Na3 {[%clk 0:03:53.7]} 20... Nec8 {[%clk 0:02:23.6]}
21. Nb5+ {[%clk 0:03:42.1]} 21... Kb8 {[%clk 0:02:22.1]} 22. Ra2 {[%clk
0:03:31.9]} 22... f3 {[%clk 0:01:53]} 23. Ba3 {[%clk 0:03:24.5]} 23... fxg2
{[%clk 0:01:42.6]} 24. Rf7 {[%clk 0:03:09.9]} 24... Be3+ {[%clk 0:01:26.7]} 25.
Kxg2 {[%clk 0:03:05.5]} 25... Qe4+ {[%clk 0:01:24.5]} 26. Kf1 {[%clk 0:02:54.7]}
26... Rhf8 {[%clk 0:01:17.5]} 27. Bxf8 {[%clk 0:02:45.2]} 27... g2+ {[%clk
0:01:00.3]} 28. Ke2 {[%clk 0:02:33.3]} 28... g1=Q {[%clk 0:00:45.5]} 29. Rxb7+
{[%clk 0:02:19.7]} 29... Kxb7 {[%clk 0:00:41.4]} 30. Nd6+ {[%clk 0:01:56.4]}
30... Rxd6 {[%clk 0:00:32.7]} 31. Bxd6 {[%clk 0:01:52.8]} 31... Qf2+ {[%clk
0:00:31]} 32. Kd1 {[%clk 0:01:50.5]} 32... Qh1# {[%clk 0:00:30.1]} 0-1

[Event "Live Chess"]
[Site "Chess.com"]
[Date "2023.05.20"]
[Round "-"]
[White "Delacorta"]
[Black "GMHarry-youtube"]
[Result "0-1"]
[WhiteElo "1429"]
[BlackElo "2009"]
[TimeControl "300"]
[EndTime "15:50:54 PDT"]
[Termination "GMHarry-youtube won by checkmate"]

1. d4 {[%clk 0:04:57.9]} 1... Nf6 {[%clk 0:04:58.2]} 2. Nf3 {[%clk 0:04:56.9]}
2... g6 {[%clk 0:04:57.5]} 3. e3 {[%clk 0:04:55.7]} 3... Bg7 {[%clk 0:04:56.7]}
4. Bd3 {[%clk 0:04:54.9]} 4... O-O {[%clk 0:04:55.8]} 5. b3 {[%clk 0:04:54.2]}
5... c5 {[%clk 0:04:54.7]} 6. Bb2 {[%clk 0:04:53.1]} 6... cxd4 {[%clk
0:04:54.2]} 7. Bxd4 {[%clk 0:04:51.6]} 7... d5 {[%clk 0:04:54.1]} 8. Nbd2 {[%clk
0:04:49.7]} 8... Nc6 {[%clk 0:04:53.1]} 9. Bb2 {[%clk 0:04:45.7]} 9... Re8
{[%clk 0:04:52.2]} 10. O-O {[%clk 0:04:43.9]} 10... e5 {[%clk 0:04:51.3]} 11. e4
{[%clk 0:04:36.4]} 11... d4 {[%clk 0:04:49.4]} 12. a3 {[%clk 0:04:26.4]} 12...
Nh5 {[%clk 0:04:46.1]} 13. Rc1 {[%clk 0:04:16.5]} 13... Nf4 {[%clk 0:04:41.2]}
14. Nc4 {[%clk 0:03:47.7]} 14... f5 {[%clk 0:04:37]} 15. Ncd2 {[%clk 0:03:17.8]}
15... fxe4 {[%clk 0:04:30.4]} 16. Bc4+ {[%clk 0:03:16.5]} 16... Kh8 {[%clk
0:04:28.9]} 17. Nxe4 {[%clk 0:03:08.1]} 17... Qd7 {[%clk 0:04:09.7]} 18. Neg5
{[%clk 0:02:50]} 18... Rf8 {[%clk 0:04:04.1]} 19. Nxh7 {[%clk 0:02:46]} 19...
Qg4 {[%clk 0:03:57.8]} 20. Nh4 {[%clk 0:02:17.8]} 20... Qxh4 {[%clk 0:03:49.9]}
21. Nxf8 {[%clk 0:02:10.2]} 21... Bxf8 {[%clk 0:03:34.4]} 22. g3 {[%clk
0:01:43.5]} 22... Nh3+ {[%clk 0:03:29.4]} 23. Kg2 {[%clk 0:01:42.7]} 23... Qh7
{[%clk 0:03:24.7]} 24. Qf3 {[%clk 0:01:26.1]} 24... Bf5 {[%clk 0:03:16.6]} 25.
Bd3 {[%clk 0:01:19]} 25... Bh6 {[%clk 0:02:55.9]} 26. Bxf5 {[%clk 0:01:09]}
26... gxf5 {[%clk 0:02:53.3]} 27. Rce1 {[%clk 0:00:59.9]} 27... e4 {[%clk
0:02:52]} 28. Qh5 {[%clk 0:00:48.8]} 28... Ng5 {[%clk 0:02:45.8]} 29. Rd1 {[%clk
0:00:31.1]} 29... Nf3 {[%clk 0:02:41.2]} 30. Rxd4 {[%clk 0:00:28.3]} 30... Ncxd4
{[%clk 0:02:39.4]} 31. Rd1 {[%clk 0:00:23.3]} 31... Bg7 {[%clk 0:02:29.9]} 32.
Qf7 {[%clk 0:00:21.3]} 32... Qxh2+ {[%clk 0:02:28.2]} 33. Kf1 {[%clk 0:00:18.8]}
33... Qh1# {[%clk 0:02:27.8]} 0-1

[Event "Live Chess"]
[Site "Chess.com"]
[Date "2023.05.20"]
[Round "-"]
[White "parcellforce"]
[Black "KeithArkell"]
[Result "0-1"]
[WhiteElo "1348"]
[BlackElo "2608"]
[TimeControl "300"]
[EndTime "15:51:19 PDT"]
[Termination "KeithArkell won by resignation"]

1. d4 {[%clk 0:04:59.5]} 1... e6 {[%clk 0:04:58.7]} 2. c4 {[%clk 0:04:58.9]}
2... Bb4+ {[%clk 0:04:57.7]} 3. Nc3 {[%clk 0:04:57]} 3... c5 {[%clk 0:04:56.5]}
4. e3 {[%clk 0:04:55]} 4... Bxc3+ {[%clk 0:04:55.5]} 5. bxc3 {[%clk 0:04:54.2]}
5... f5 {[%clk 0:04:55.4]} 6. Nf3 {[%clk 0:04:48.4]} 6... Nf6 {[%clk 0:04:54.5]}
7. Qc2 {[%clk 0:04:42.4]} 7... d6 {[%clk 0:04:53.3]} 8. Bd3 {[%clk 0:04:41.6]}
8... Nc6 {[%clk 0:04:52.3]} 9. d5 {[%clk 0:04:37.2]} 9... Ne5 {[%clk 0:04:50.1]}
10. Nxe5 {[%clk 0:04:34.7]} 10... dxe5 {[%clk 0:04:49.4]} 11. dxe6 {[%clk
0:04:29.1]} 11... e4 {[%clk 0:04:48.5]} 12. Be2 {[%clk 0:04:21.9]} 12... Bxe6
{[%clk 0:04:47.6]} 13. O-O {[%clk 0:04:20]} 13... O-O {[%clk 0:04:46.2]} 14. Ba3
{[%clk 0:04:15.6]} 14... Qc7 {[%clk 0:04:44.5]} 15. Rfd1 {[%clk 0:04:08.5]}
15... Rad8 {[%clk 0:04:42.9]} 16. Rd2 {[%clk 0:04:00.3]} 16... Rxd2 {[%clk
0:04:41.2]} 17. Qxd2 {[%clk 0:04:00.2]} 17... Rd8 {[%clk 0:04:40.5]} 18. Qc2
{[%clk 0:03:59.5]} 18... Nd7 {[%clk 0:04:39.3]} 19. f4 {[%clk 0:03:39.6]} 19...
exf3 {[%clk 0:04:34]} 20. Bxf3 {[%clk 0:03:38.7]} 20... Ne5 {[%clk 0:04:31.4]}
21. Bc1 {[%clk 0:03:16.2]} 21... Nxf3+ {[%clk 0:04:29.7]} 22. gxf3 {[%clk
0:03:16.1]} 22... Qd6 {[%clk 0:04:23.5]} 23. Bb2 {[%clk 0:03:09.7]} 23... Qd2
{[%clk 0:04:20.9]} 24. Qxd2 {[%clk 0:03:02.5]} 24... Rxd2 {[%clk 0:04:19.6]} 25.
Ba3 {[%clk 0:03:02.4]} 25... b6 {[%clk 0:04:18.2]} 26. Bc1 {[%clk 0:03:02.3]}
26... Rd1+ {[%clk 0:04:12.1]} 27. Kg2 {[%clk 0:03:00.4]} 27... Bxc4 {[%clk
0:04:11]} 28. a4 {[%clk 0:02:59.7]} 28... Rd3 {[%clk 0:03:58.2]} 29. a5 {[%clk
0:02:44.2]} 29... Rxc3 {[%clk 0:03:56.3]} 30. axb6 {[%clk 0:02:43.3]} 30... axb6
{[%clk 0:03:55.8]} 31. Kf2 {[%clk 0:02:36.4]} 31... Rc2+ {[%clk 0:03:47.3]} 32.
Kg3 {[%clk 0:02:25.3]} 32... g5 {[%clk 0:03:46.3]} 33. e4 {[%clk 0:02:21.3]}
33... f4+ {[%clk 0:03:41.8]} 34. Kg4 {[%clk 0:02:12.7]} 34... h6 {[%clk
0:03:35.1]} 35. h4 {[%clk 0:02:05.5]} 35... Be6+ {[%clk 0:03:32.1]} 36. Kh5
{[%clk 0:02:02.9]} 36... Rg2 {[%clk 0:03:23.8]} 37. hxg5 {[%clk 0:01:52.3]}
37... hxg5 {[%clk 0:03:23]} 38. Kg6 {[%clk 0:01:46.9]} 38... Bf7+ {[%clk
0:03:17.8]} 39. Kf5 {[%clk 0:01:45.3]} 39... Kg7 {[%clk 0:03:02.5]} 40. Ra7
{[%clk 0:01:43.7]} 40... Rc2 {[%clk 0:02:55.7]} 41. Ra1 {[%clk 0:01:32.5]} 41...
Rg2 {[%clk 0:02:48.8]} 42. Rb1 {[%clk 0:01:31.3]} 42... Bg6+ {[%clk 0:02:43.6]}
43. Ke5 {[%clk 0:01:28.4]} 43... Rg1 {[%clk 0:02:41.7]} 44. Kd6 {[%clk
0:01:22.2]} 44... Kh6 {[%clk 0:02:30.1]} 45. Kc6 {[%clk 0:01:19]} 45... Rf1
{[%clk 0:02:28.2]} 46. Kxb6 {[%clk 0:01:17.7]} 46... Rxf3 {[%clk 0:02:26.5]} 47.
Kxc5 {[%clk 0:01:17.4]} 47... Bxe4 {[%clk 0:02:24.4]} 48. Kd4 {[%clk 0:01:12.3]}
48... Bxb1 {[%clk 0:02:22.3]} 49. Ke5 {[%clk 0:01:09.9]} 49... Kg6 {[%clk
0:02:07]} 0-1

[Event "Live Chess"]
[Site "Chess.com"]
[Date "2023.05.20"]
[Round "-"]
[White "LL220284LL"]
[Black "HD_IN4k"]
[Result "1-0"]
[WhiteElo "2385"]
[BlackElo "391"]
[TimeControl "300"]
[EndTime "15:51:32 PDT"]
[Termination "LL220284LL won by checkmate"]

1. Nf3 {[%clk 0:04:57.9]} 1... Nf6 {[%clk 0:04:56.3]} 2. b3 {[%clk 0:04:57.1]}
2... b6 {[%clk 0:04:53.5]} 3. Bb2 {[%clk 0:04:56.8]} 3... Bb7 {[%clk 0:04:49.7]}
4. e3 {[%clk 0:04:56.7]} 4... e6 {[%clk 0:04:47.7]} 5. Be2 {[%clk 0:04:55.7]}
5... Be7 {[%clk 0:04:45.6]} 6. d4 {[%clk 0:04:54.8]} 6... O-O {[%clk 0:04:43.9]}
7. Nbd2 {[%clk 0:04:52.2]} 7... d5 {[%clk 0:04:38.5]} 8. O-O {[%clk 0:04:50.1]}
8... Ne4 {[%clk 0:04:37.1]} 9. Nxe4 {[%clk 0:04:47.7]} 9... dxe4 {[%clk
0:04:35.5]} 10. Nd2 {[%clk 0:04:47.6]} 10... f5 {[%clk 0:04:31.3]} 11. f3 {[%clk
0:04:45.4]} 11... Qe8 {[%clk 0:04:17.9]} 12. fxe4 {[%clk 0:04:43.3]} 12... fxe4
{[%clk 0:04:11.7]} 13. Rxf8+ {[%clk 0:04:39.4]} 13... Qxf8 {[%clk 0:04:10.7]}
14. Bg4 {[%clk 0:04:39.3]} 14... Bh4 {[%clk 0:04:01.2]} 15. Bxe6+ {[%clk
0:04:37.2]} 15... Kh8 {[%clk 0:03:58.4]} 16. Qe2 {[%clk 0:04:35.8]} 16... Nc6
{[%clk 0:03:56.3]} 17. Rf1 {[%clk 0:04:33.3]} 17... Qe7 {[%clk 0:03:46.5]} 18.
Bd5 {[%clk 0:04:31.4]} 18... Rf8 {[%clk 0:03:37.6]} 19. Rxf8+ {[%clk 0:04:26.1]}
19... Qxf8 {[%clk 0:03:36.3]} 20. Bxe4 {[%clk 0:04:25.7]} 20... Nb4 {[%clk
0:03:25.9]} 21. Bxb7 {[%clk 0:04:22]} 21... Nxc2 {[%clk 0:03:17.9]} 22. Nf3
{[%clk 0:04:20.3]} 22... Bf2+ {[%clk 0:02:12.6]} 23. Qxf2 {[%clk 0:04:16.4]}
23... Nb4 {[%clk 0:01:56.6]} 24. Be4 {[%clk 0:04:11.1]} 24... c5 {[%clk
0:01:49.5]} 25. Qh4 {[%clk 0:04:05.2]} 25... h6 {[%clk 0:01:43.6]} 26. dxc5
{[%clk 0:04:02.8]} 26... bxc5 {[%clk 0:01:40]} 27. Qxh6+ {[%clk 0:04:01.7]}
27... Kg8 {[%clk 0:01:14.5]} 28. Bh7+ {[%clk 0:04:01.6]} 28... Kf7 {[%clk
0:01:01.2]} 29. Qg6+ {[%clk 0:03:59.9]} 29... Ke7 {[%clk 0:00:59]} 30. Be5
{[%clk 0:03:52.9]} 30... Nd3 {[%clk 0:00:54.8]} 31. Qd6+ {[%clk 0:03:49.8]}
31... Ke8 {[%clk 0:00:51.4]} 32. Bg6+ {[%clk 0:03:48.6]} 32... Qf7 {[%clk
0:00:41]} 33. Qe6+ {[%clk 0:03:46.7]} 33... Kf8 {[%clk 0:00:37.5]} 34. Qxf7#
{[%clk 0:03:45.4]} 1-0

[Event "Live Chess"]
[Site "Chess.com"]
[Date "2023.05.20"]
[Round "-"]
[White "FlyingChessKestrel13"]
[Black "karimghalambaz"]
[Result "1-0"]
[WhiteElo "2101"]
[BlackElo "1282"]
[TimeControl "300"]
[EndTime "15:51:32 PDT"]
[Termination "FlyingChessKestrel13 won by resignation"]

1. e4 {[%clk 0:04:58]} 1... c5 {[%clk 0:04:54]} 2. Nc3 {[%clk 0:04:56]} 2... d6
{[%clk 0:04:52.6]} 3. g3 {[%clk 0:04:55.1]} 3... Nc6 {[%clk 0:04:48.2]} 4. Bg2
{[%clk 0:04:54.6]} 4... Nf6 {[%clk 0:04:46.3]} 5. Nge2 {[%clk 0:04:53.7]} 5...
g6 {[%clk 0:04:30.8]} 6. O-O {[%clk 0:04:52.3]} 6... Bg7 {[%clk 0:04:21.4]} 7.
d4 {[%clk 0:04:50.1]} 7... cxd4 {[%clk 0:04:11.4]} 8. Nxd4 {[%clk 0:04:48.6]}
8... O-O {[%clk 0:04:09.3]} 9. Nxc6 {[%clk 0:04:46.8]} 9... bxc6 {[%clk
0:04:07.6]} 10. e5 {[%clk 0:04:46.4]} 10... dxe5 {[%clk 0:04:02.6]} 11. Bxc6
{[%clk 0:04:46]} 11... Rb8 {[%clk 0:03:55.6]} 12. Qe2 {[%clk 0:04:43]} 12... Bh3
{[%clk 0:03:51.8]} 13. Rd1 {[%clk 0:04:41.2]} 13... Qc7 {[%clk 0:03:47.2]} 14.
Bh1 {[%clk 0:04:38.7]} 14... e4 {[%clk 0:03:32.1]} 15. Nxe4 {[%clk 0:04:32]}
15... Nxe4 {[%clk 0:03:23.9]} 16. Qxe4 {[%clk 0:04:30.8]} 16... Bf5 {[%clk
0:03:12.8]} 17. Qc6 {[%clk 0:04:27.4]} 17... Qxc6 {[%clk 0:03:03.9]} 18. Bxc6
{[%clk 0:04:25.4]} 18... Bxc2 {[%clk 0:03:01.7]} 19. Re1 {[%clk 0:04:21.7]}
19... e6 {[%clk 0:02:59.1]} 20. Be3 {[%clk 0:04:11.6]} 20... Bxb2 {[%clk
0:02:53.1]} 21. Bxa7 {[%clk 0:04:09.7]} 21... Rbc8 {[%clk 0:02:44.7]} 22. Bg2
{[%clk 0:04:04.1]} 22... Bxa1 {[%clk 0:02:42]} 23. Rxa1 {[%clk 0:04:02]} 23...
Bf5 {[%clk 0:02:37.8]} 24. a4 {[%clk 0:03:58.3]} 24... Rc2 {[%clk 0:02:29]} 25.
a5 {[%clk 0:03:56.6]} 25... Rfc8 {[%clk 0:02:24.5]} 26. Be3 {[%clk 0:03:53.2]}
26... Rb2 {[%clk 0:02:14.7]} 27. a6 {[%clk 0:03:51.5]} 27... Rcc2 {[%clk
0:02:12.1]} 28. a7 {[%clk 0:03:47.1]} 28... Ra2 {[%clk 0:02:10.5]} 29. Rb1
{[%clk 0:03:38.3]} 29... Rcb2 {[%clk 0:01:46.6]} 30. Rxb2 {[%clk 0:03:30.2]}
30... Rxb2 {[%clk 0:01:43.1]} 31. a8=Q+ {[%clk 0:03:28]} 31... Kg7 {[%clk
0:01:40.7]} 32. Bd4+ {[%clk 0:03:27]} 32... f6 {[%clk 0:01:19.4]} 33. Bxb2
{[%clk 0:03:23.7]} 1-0

[Event "Live Chess"]
[Site "Chess.com"]
[Date "2023.05.20"]
[Round "-"]
[White "Nazar_777"]
[Black "grillage"]
[Result "0-1"]
[WhiteElo "1639"]
[BlackElo "1857"]
[TimeControl "300"]
[EndTime "15:51:40 PDT"]
[Termination "grillage won by checkmate"]

1. e3 {[%clk 0:04:59.1]} 1... Nf6 {[%clk 0:04:49.2]} 2. h4 {[%clk 0:04:58]} 2...
e6 {[%clk 0:04:46.3]} 3. a3 {[%clk 0:04:57.3]} 3... c5 {[%clk 0:04:40.5]} 4. c4
{[%clk 0:04:56.4]} 4... d5 {[%clk 0:04:39.3]} 5. cxd5 {[%clk 0:04:55.2]} 5...
exd5 {[%clk 0:04:38.3]} 6. Nf3 {[%clk 0:04:54.5]} 6... Nc6 {[%clk 0:04:37.1]} 7.
Be2 {[%clk 0:04:53.9]} 7... Bg4 {[%clk 0:04:36.1]} 8. Qc2 {[%clk 0:04:53.3]}
8... Be7 {[%clk 0:04:30]} 9. Nc3 {[%clk 0:04:52.6]} 9... O-O {[%clk 0:04:16]}
10. Ng5 {[%clk 0:04:51.2]} 10... Bxe2 {[%clk 0:04:13.7]} 11. Kxe2 {[%clk
0:04:48.7]} 11... d4 {[%clk 0:04:04.6]} 12. Nce4 {[%clk 0:04:47]} 12... d3+
{[%clk 0:03:29.3]} 13. Qxd3 {[%clk 0:04:41.6]} 13... Qxd3+ {[%clk 0:03:28.7]}
14. Kxd3 {[%clk 0:04:40.5]} 14... Rad8+ {[%clk 0:03:24.1]} 15. Ke2 {[%clk
0:04:37.3]} 15... Nxe4 {[%clk 0:03:18.9]} 16. Nxe4 {[%clk 0:04:35.6]} 16... c4
{[%clk 0:03:14.7]} 17. g4 {[%clk 0:04:24.3]} 17... Rfe8 {[%clk 0:03:13.4]} 18.
g5 {[%clk 0:04:22.8]} 18... Ne5 {[%clk 0:02:52.7]} 19. f4 {[%clk 0:04:13.9]}
19... Nd3 {[%clk 0:02:50.7]} 20. h5 {[%clk 0:04:05.7]} 20... Nxc1+ {[%clk
0:02:33.3]} 21. Raxc1 {[%clk 0:04:03.1]} 21... b5 {[%clk 0:02:30.7]} 22. Rhg1
{[%clk 0:03:59.5]} 22... Bxa3 {[%clk 0:02:24.7]} 23. Nf6+ {[%clk 0:03:47]} 23...
gxf6 {[%clk 0:02:23.4]} 24. gxf6+ {[%clk 0:03:44.6]} 24... Kh8 {[%clk
0:02:20.1]} 25. bxa3 {[%clk 0:03:43.2]} 25... Re6 {[%clk 0:02:16.2]} 26. a4
{[%clk 0:03:35.6]} 26... a6 {[%clk 0:02:14.3]} 27. axb5 {[%clk 0:03:33.5]} 27...
axb5 {[%clk 0:02:13.6]} 28. Rg4 {[%clk 0:03:22.3]} 28... Rxf6 {[%clk 0:02:09.2]}
29. Ra1 {[%clk 0:03:20.7]} 29... Rfd6 {[%clk 0:02:03.4]} 30. Rd1 {[%clk
0:03:17.9]} 30... b4 {[%clk 0:01:59.8]} 31. f5 {[%clk 0:03:15.7]} 31... c3
{[%clk 0:01:55.1]} 32. Rxb4 {[%clk 0:03:13.5]} 32... Rxd2+ {[%clk 0:01:53.1]}
33. Rxd2 {[%clk 0:03:11.9]} 33... Rxd2+ {[%clk 0:01:52]} 34. Kf3 {[%clk
0:03:07.8]} 34... Kg7 {[%clk 0:01:49.5]} 35. Rc4 {[%clk 0:03:04.5]} 35... c2
{[%clk 0:01:46.5]} 36. Kf4 {[%clk 0:03:00.6]} 36... Rh2 {[%clk 0:01:34.6]} 37.
Kg5 {[%clk 0:02:58.8]} 37... h6+ {[%clk 0:01:29.1]} 38. Kf4 {[%clk 0:02:56.4]}
38... Rh4+ {[%clk 0:01:28]} 39. Ke5 {[%clk 0:02:54.8]} 39... Rxc4 {[%clk
0:01:26.8]} 40. f6+ {[%clk 0:02:46.3]} 40... Kf8 {[%clk 0:01:24]} 41. Kf5 {[%clk
0:02:45.3]} 41... c1=Q {[%clk 0:01:20.8]} 42. e4 {[%clk 0:02:44.6]} 42... Qf1+
{[%clk 0:01:17.7]} 43. Ke5 {[%clk 0:02:43.5]} 43... Rc5+ {[%clk 0:01:08.6]} 44.
Kd6 {[%clk 0:02:41.9]} 44... Rxh5 {[%clk 0:01:03.6]} 45. e5 {[%clk 0:02:40.6]}
45... Qa6+ {[%clk 0:01:00.8]} 46. Kd7 {[%clk 0:02:37]} 46... Rxe5 {[%clk
0:00:57.6]} 47. Kc7 {[%clk 0:02:34.7]} 47... Re6 {[%clk 0:00:49.8]} 48. Kd7
{[%clk 0:02:32.8]} 48... Qa7+ {[%clk 0:00:43.9]} 49. Kd8 {[%clk 0:02:31.1]}
49... Re8# {[%clk 0:00:43.5]} 0-1

[Event "Live Chess"]
[Site "Chess.com"]
[Date "2023.05.20"]
[Round "-"]
[White "xx_blindpuffin_xx"]
[Black "HoarseyHorsey"]
[Result "1-0"]
[WhiteElo "2208"]
[BlackElo "1430"]
[TimeControl "300"]
[EndTime "15:52:06 PDT"]
[Termination "xx_blindpuffin_xx won by resignation"]

1. c4 {[%clk 0:04:57.7]} 1... Nf6 {[%clk 0:04:58.2]} 2. Nc3 {[%clk 0:04:50.1]}
2... e6 {[%clk 0:04:51.9]} 3. g3 {[%clk 0:04:49.4]} 3... d5 {[%clk 0:04:44.6]}
4. cxd5 {[%clk 0:04:47.6]} 4... exd5 {[%clk 0:04:43.4]} 5. Bg2 {[%clk
0:04:47.2]} 5... c6 {[%clk 0:04:42.8]} 6. Nf3 {[%clk 0:04:42.1]} 6... Bg4 {[%clk
0:04:37.9]} 7. O-O {[%clk 0:04:40.8]} 7... Bd6 {[%clk 0:04:33.7]} 8. d3 {[%clk
0:04:36.2]} 8... Nbd7 {[%clk 0:04:28.1]} 9. e4 {[%clk 0:04:31.8]} 9... d4 {[%clk
0:04:00.2]} 10. Ne2 {[%clk 0:04:26.2]} 10... c5 {[%clk 0:03:53.3]} 11. h3 {[%clk
0:04:22.1]} 11... Be6 {[%clk 0:03:38.5]} 12. Nh2 {[%clk 0:04:14.9]} 12... O-O
{[%clk 0:03:33.7]} 13. f4 {[%clk 0:04:03.2]} 13... Bb8 {[%clk 0:03:23.9]} 14. f5
{[%clk 0:04:01]} 14... Bd5 {[%clk 0:02:58.3]} 15. exd5 {[%clk 0:03:58.1]} 15...
Nb6 {[%clk 0:02:55.7]} 16. Bg5 {[%clk 0:03:48.8]} 16... Bd6 {[%clk 0:02:53.8]}
17. Nf4 {[%clk 0:03:42.1]} 17... h6 {[%clk 0:02:50.6]} 18. Bh4 {[%clk
0:03:36.9]} 18... Re8 {[%clk 0:02:39.6]} 19. Ng4 {[%clk 0:03:34.8]} 19... Be7
{[%clk 0:02:37]} 20. Nxf6+ {[%clk 0:03:27.7]} 20... Bxf6 {[%clk 0:02:36.2]} 21.
Bxf6 {[%clk 0:03:26.9]} 21... Qxf6 {[%clk 0:02:35.8]} 22. g4 {[%clk 0:03:24.4]}
22... Re3 {[%clk 0:02:27.7]} 23. a4 {[%clk 0:03:17.3]} 23... Rae8 {[%clk
0:02:19.3]} 24. a5 {[%clk 0:03:07.6]} 24... Nd7 {[%clk 0:02:17.3]} 25. Be4
{[%clk 0:02:58.3]} 25... Qh4 {[%clk 0:02:07.2]} 26. Ng2 {[%clk 0:02:47.9]} 26...
Qxh3 {[%clk 0:01:59.3]} 27. Nxe3 {[%clk 0:02:45.8]} 27... Qxe3+ {[%clk
0:01:56.5]} 28. Rf2 {[%clk 0:02:44.2]} 28... Nf6 {[%clk 0:01:54.6]} 29. Qf3
{[%clk 0:02:38.9]} 29... Qxf3 {[%clk 0:01:48.5]} 30. Bxf3 {[%clk 0:02:36.5]}
30... Rd8 {[%clk 0:01:44.1]} 31. Re1 {[%clk 0:02:31.2]} 31... Nxd5 {[%clk
0:01:41.5]} 32. Bxd5 {[%clk 0:02:28.1]} 32... Rxd5 {[%clk 0:01:40.4]} 33. Re7
{[%clk 0:02:27.7]} 33... b6 {[%clk 0:01:36]} 34. axb6 {[%clk 0:02:27.6]} 34...
axb6 {[%clk 0:01:34.9]} 35. Rb7 {[%clk 0:02:26.6]} 35... c4 {[%clk 0:01:30.8]}
36. dxc4 {[%clk 0:02:25]} 36... Rc5 {[%clk 0:01:29.8]} 37. Rxb6 {[%clk
0:02:23.6]} 37... Rxc4 {[%clk 0:01:28.6]} 38. Rd2 {[%clk 0:02:22.9]} 1-0

[Event "Live Chess"]
[Site "Chess.com"]
[Date "2023.05.20"]
[Round "-"]
[White "Pablo_dmp"]
[Black "Conradical12"]
[Result "1-0"]
[WhiteElo "1877"]
[BlackElo "1611"]
[TimeControl "300"]
[EndTime "15:52:12 PDT"]
[Termination "Pablo_dmp won by checkmate"]

1. e4 {[%clk 0:04:59.1]} 1... e5 {[%clk 0:04:58.1]} 2. Nc3 {[%clk 0:04:58.1]}
2... Nc6 {[%clk 0:04:57.3]} 3. Bc4 {[%clk 0:04:56.9]} 3... Nf6 {[%clk
0:04:56.6]} 4. d3 {[%clk 0:04:56]} 4... Bc5 {[%clk 0:04:55.9]} 5. f4 {[%clk
0:04:54.2]} 5... d6 {[%clk 0:04:53.5]} 6. Nf3 {[%clk 0:04:50]} 6... Ng4 {[%clk
0:04:52.8]} 7. Na4 {[%clk 0:04:43.7]} 7... Nf2 {[%clk 0:04:36.5]} 8. Qe2 {[%clk
0:04:41.7]} 8... Nxh1 {[%clk 0:04:32.9]} 9. Nxc5 {[%clk 0:04:38.8]} 9... dxc5
{[%clk 0:04:21.9]} 10. Ng5 {[%clk 0:04:37.7]} 10... O-O {[%clk 0:04:17.5]} 11.
Qh5 {[%clk 0:04:32.4]} 11... h6 {[%clk 0:03:50.9]} 12. Nxf7 {[%clk 0:04:31.1]}
12... Qd4 {[%clk 0:03:31.9]} 13. Nxh6+ {[%clk 0:04:27.9]} 13... Kh7 {[%clk
0:03:26.3]} 14. Nf7+ {[%clk 0:04:25.8]} 14... Kg8 {[%clk 0:03:23.6]} 15. Qh8#
{[%clk 0:04:25.7]} 1-0